[Event "IV Zagreb Open 2019"]
[Site "Zagreb"]
[Date "2019.12.11"]
[Round "6.5"]
[White "Plenca, Jadranko"]
[Black "Djurovic, Goran"]
[Result "1-0"]
[ECO "B51"]
[WhiteElo "2453"]
[BlackElo "2382"]
[Annotator "ChessBase"]
[PlyCount "75"]
[EventDate "2019.12.07"]
[EventType "swiss"]
[EventCountry "CRO"]
[SourceTitle "playchess.com"]
[Source "ChessBase"]
[SourceQuality "1"]
[TimeControl "40/5400+30:1800+30"]

1. e4 {[%emt 0:00:00]} c5 {[%emt 0:05:44]} 2. Nf3 {[%emt 0:00:00]} d6 {[%emt 0:00:25]} 3. Bb5+ {[%emt 0:00:00]} Nd7 {[%emt 0:01:12]} 4. d4 {[%emt 0:00:03]} cxd4 {[%emt 0:02:24]} 5. Qxd4 {[%emt 0:00:23]} a6 {[%emt 0:02:41]} 6. Be2 {[%emt 0:02:22]} Ngf6 {[%emt 0:16:22]} 7. c4 {[%emt 0:04:35]} e5 {[%emt 0:06:33]} 8. Qe3 {[%emt 0:01:34]} Nc5 {[%emt 0:01:08]} 9. Nc3 {[%emt 0:00:20]} Bg4 {[%emt 0:01:06]} 10. O-O {[%emt 0:01:27]} Ne6 {[%emt 0:06:37]} 11. Qd3 {[%emt 0:05:47]} Be7 {[%emt 0:05:30]} 12. Be3 {[%emt 0:01:09]} O-O {[%emt 0:08:45]} 13. Rfd1 {[%emt 0:00:59]} Nh5 {[%emt 0:07:39]} 14. Nd5 {[%emt 0:06:22]} Nhf4 {[%emt 0:00:59]} 15. Bxf4 {[%emt 0:02:09]} Nxf4 {[%emt 0:00:45]} 16. Nxf4 {[%emt 0:01:08]} exf4 {[%emt 0:00:07]} 17. Nd4 {[%emt 0:03:03]} Bd7 {[%emt 0:04:29]} 18. Qd2 {[%emt 0:06:32]} g5 {[%emt 0:03:08]} 19. h3 {[%emt 0:10:51]} Re8 {[%emt 0:03:21]} 20. Bg4 {[%emt 0:08:50]} Bf6 {[%emt 0:05:50]} 21. Qe2 {[%emt 0:07:08]} Bc6 {[%emt 0:04:15]} 22. Bf5 {[%emt 0:01:57]} h6 {[%emt 0:01:56]} 23. Qh5 {[%emt 0:03:11]} Bg7 {[%emt 0:01:26]} 24. c5 {[%emt 0:06:49]} d5 {[%emt 0:04:25]} 25. Nxc6 {[%emt 0:02:11]} bxc6 {[%emt 0:00:02]} 26. exd5 {[%emt 0:00:24]} cxd5 {[%emt 0:00:14]} 27. c6 {[%emt 0:01:15]} Qd6 {[%emt 0:00:28]} 28. Rac1 {[%emt 0:01:27]} Ra7 {[%emt 0:01:12]} 29. Bd7 {[%emt 0:04:54]} Re4 {[%emt 0:00:19]} 30. Qf3 {[%emt 0:01:10]} Bd4 {[%emt 0:02:35]} 31. Bf5 {[%emt 0:03:31]} Qe5 {[%emt 0:00:42]} 32. Bxe4 {[%emt 0:02:00]} dxe4 {[%emt 0:00:04]} 33. Qb3 {[%emt 0:00:10]} e3 {[%emt 0:01:08]} 34. c7 {[%emt 0:01:18]} exf2+ {[%emt 0:00:30]} 35. Kf1 {[%emt 0:00:28]} Kg7 {[%emt 0:02:55]} 36. c8=Q {[%emt 0:02:59]} Re7 {[%emt 0:00:06]} 37. Qd3 {[%emt 0:01:15]} Bxb2 {[%emt 0:00:34]} 38. Qcf5 {[%emt 0:01:53]} 1-0

[Event "IV Zagreb Open 2019"]
[Site "Zagreb"]
[Date "2019.12.11"]
[Round "6.7"]
[White "Rudolf, Michal"]
[Black "Lalic, Bogdan"]
[Result "1/2-1/2"]
[ECO "B51"]
[WhiteElo "2328"]
[BlackElo "2414"]
[Annotator "NA"]
[PlyCount "22"]
[EventDate "2019.12.07"]
[EventType "swiss"]
[EventCountry "CRO"]
[SourceTitle "playchess.com"]
[Source "ChessBase"]
[SourceQuality "1"]
[TimeControl "40/5400+30:1800+30"]

1. e4 {[%emt 0:00:37]} c5 {[%emt 0:00:25]} 2. Nf3 {[%emt 0:00:06]} d6 {[%emt 0:00:07]} 3. Bb5+ {[%emt 0:00:20]} Nd7 {[%emt 0:00:06]} 4. O-O {[%emt 0:01:38]} a6 {[%emt 0:00:17]} 5. Bd3 {[%emt 0:00:09]} Ngf6 {[%emt 0:00:16]} 6. Re1 {[%emt 0:00:11]} b5 {[%emt 0:00:38]} 7. c4 {[%emt 0:00:30]} Rb8 {[%emt 0:00:28]} 8. a3 {[%emt 0:01:19]} e5 {[%emt 0:01:46]} 9. b4 {[%emt 0:06:01]} bxc4 {[%emt 0:07:17]} 10. Bxc4 {[%emt 0:01:20]} Be7 {[%emt 0:00:06]} 11. Nc3 {[%emt 0:09:52]} O-O {[%emt 0:01:42]} 1/2-1/2

[Event "IV Zagreb Open 2019"]
[Site "Zagreb"]
[Date "2019.12.11"]
[Round "6.8"]
[White "Sai Agni Jeevitesh, J."]
[Black "Stany, G.A."]
[Result "1/2-1/2"]
[ECO "A17"]
[WhiteElo "2301"]
[BlackElo "2526"]
[Annotator "ChessBase"]
[PlyCount "23"]
[EventDate "2019.12.07"]
[EventType "swiss"]
[EventCountry "CRO"]
[SourceTitle "playchess.com"]
[Source "ChessBase"]
[SourceQuality "1"]
[TimeControl "40/5400+30:1800+30"]

1. Nf3 {[%emt 0:00:40]} d5 {[%emt 0:00:00]} 2. e3 {[%emt 0:00:35]} Nf6 {[%emt 0:00:00]} 3. c4 {[%emt 0:00:09]} e6 {[%emt 0:00:00]} 4. Nc3 {[%emt 0:00:20]} Bd6 {[%emt 0:01:21]} 5. b3 {[%emt 0:01:03]} Nbd7 {[%emt 0:05:35]} 6. Bb2 {[%emt 0:02:03]} O-O {[%emt 0:00:09]} 7. Qc2 {[%emt 0:08:21]} a6 {[%emt 0:03:12]} 8. d4 {[%emt 0:09:52]} b6 {[%emt 0:01:26]} 9. cxd5 {[%emt 0:01:47]} exd5 {[%emt 0:00:08]} 10. g3 {[%emt 0:00:02]} Bb7 {[%emt 0:20:06]} 11. Bg2 {[%emt 0:00:02]} Re8 {[%emt 0:06:26]} 12. O-O {[%emt 0:00:14]} 1/2-1/2

[Event "IV Zagreb Open 2019"]
[Site "Zagreb"]
[Date "2019.12.11"]
[Round "6.9"]
[White "Parligras, Cosmin"]
[Black "Livaic, Leon"]
[Result "0-1"]
[ECO "A11"]
[WhiteElo "2247"]
[BlackElo "2505"]
[Annotator "ChessBase"]
[PlyCount "44"]
[EventDate "2019.12.07"]
[EventType "swiss"]
[EventCountry "CRO"]
[SourceTitle "playchess.com"]
[Source "ChessBase"]
[SourceQuality "1"]
[TimeControl "40/5400+30:1800+30"]

1. Nf3 {[%emt 0:02:04]} Nf6 {[%emt 0:02:23]} 2. g3 {[%emt 0:00:07]} d5 {[%emt 0:00:51]} 3. Bg2 {[%emt 0:00:45]} c6 {[%emt 0:00:37]} 4. O-O {[%emt 0:00:14]} Bg4 {[%emt 0:00:39]} 5. c4 {[%emt 0:00:54]} e6 {[%emt 0:01:29]} 6. Qb3 {[%emt 0:03:52]} Qb6 {[%emt 0:02:00]} 7. Qxb6 {[%emt 0:00:25]} axb6 {[%emt 0:00:06]} 8. d3 {[%emt 0:00:15]} Nbd7 {[%emt 0:00:31]} 9. Nc3 {[%emt 0:01:30]} Bxf3 {[%emt 0:08:13]} 10. exf3 {[%emt 0:03:47]} Nc5 {[%emt 0:06:24]} 11. Rd1 {[%emt 0:01:14]} d4 {[%emt 0:00:37]} 12. Ne2 {[%emt 0:03:04]} Nb3 {[%emt 0:00:33]} 13. Rb1 {[%emt 0:00:06]} Rxa2 {[%emt 0:00:10]} 14. Bd2 {[%emt 0:04:02]} Be7 {[%emt 0:05:31]} 15. Nc1 {[%emt 0:00:08]} Nxc1 {[%emt 0:00:06]} 16. Bxc1 {[%emt 0:01:33]} Bb4 {[%emt 0:00:14]} 17. Bd2 {[%emt 0:00:54]} Bxd2 {[%emt 0:00:08]} 18. Rxd2 {[%emt 0:00:05]} Ke7 {[%emt 0:00:54]} 19. f4 {[%emt 0:01:18]} Rha8 {[%emt 0:02:40]} 20. Kf1 {[%emt 0:00:38]} Ra1 {[%emt 0:01:18]} 21. Rxa1 {[%emt 0:01:21]} Rxa1+ {[%emt 0:00:05]} 22. Ke2 {[%emt 0:00:07]} Rb1 {[%emt 0:00:36]} 0-1

[Event "IV Zagreb Open 2019"]
[Site "Zagreb"]
[Date "2019.12.12"]
[Round "7.1"]
[White "Kozul, Zdenko"]
[Black "Plenca, Jadranko"]
[Result "1-0"]
[ECO "E11"]
[WhiteElo "2590"]
[BlackElo "2453"]
[Annotator "ChessBase"]
[PlyCount "81"]
[EventDate "2019.12.07"]
[EventType "swiss"]
[EventCountry "CRO"]
[SourceTitle "playchess.com"]
[Source "ChessBase"]
[SourceQuality "1"]
[TimeControl "40/5400+30:1800+30"]

1. d4 {[%emt 0:00:00]} Nf6 {[%emt 0:00:01]} 2. c4 {[%emt 0:00:00]} e6 {[%emt 0:00:10]} 3. Nf3 {[%emt 0:00:51]} Bb4+ {[%emt 0:00:37]} 4. Nbd2 {[%emt 0:00:47]} O-O {[%emt 0:00:38]} 5. a3 {[%emt 0:00:19]} Be7 {[%emt 0:00:05]} 6. e4 {[%emt 0:00:44]} d5 {[%emt 0:00:12]} 7. e5 {[%emt 0:00:30]} Nfd7 {[%emt 0:00:15]} 8. Bd3 {[%emt 0:00:46]} c5 {[%emt 0:00:24]} 9. h4 {[%emt 0:00:45]} g6 {[%emt 0:00:35]} 10. O-O {[%emt 0:01:29]} Nc6 {[%emt 0:05:36]} 11. Re1 {[%emt 0:01:34]} a5 {[%emt 0:09:45]} 12. h5 {[%emt 0:13:27]} cxd4 {[%emt 0:03:26]} 13. Qc2 {[%emt 0:12:58]} Nc5 {[%emt 0:35:17]} 14. hxg6 {[%emt 0:05:21]} fxg6 {[%emt 0:07:32]} 15. Bxg6 {[%emt 0:01:12]} hxg6 {[%emt 0:04:11]} 16. Qxg6+ {[%emt 0:00:31]} Kh8 {[%emt 0:00:05]} 17. Nxd4 {[%emt 0:12:29]} Nxd4 {[%emt 0:05:23]} 18. Re3 {[%emt 0:01:01]} Bh4 {[%emt 0:01:29]} 19. Rh3 {[%emt 0:06:31]} Nf5 {[%emt 0:13:57]} 20. Nf3 {[%emt 0:00:53]} Qe8 {[%emt 0:04:35]} 21. Qg4 {[%emt 0:00:57]} Rf7 {[%emt 0:04:41]} 22. Nxh4 {[%emt 0:01:23]} Rh7 {[%emt 0:00:29]} 23. Ng6+ {[%emt 0:00:12]} Kg8 {[%emt 0:00:16]} 24. Ne7+ {[%emt 0:14:48]} Kh8 {[%emt 0:00:06]} 25. Bg5 {[%emt 0:00:09]} Ne4 {[%emt 0:00:57]} 26. Rxh7+ {[%emt 0:00:50]} Kxh7 {[%emt 0:00:04]} 27. Qh3+ {[%emt 0:00:04]} Kg7 {[%emt 0:00:06]} 28. Nxf5+ {[%emt 0:00:12]} exf5 {[%emt 0:00:06]} 29. Qh6+ {[%emt 0:00:10]} Kf7 {[%emt 0:02:01]} 30. Qh7+ {[%emt 0:03:56]} Ke6 {[%emt 0:00:04]} 31. cxd5+ {[%emt 0:00:04]} Kxd5 {[%emt 0:00:43]} 32. Qc7 {[%emt 0:00:20]} Qa4 {[%emt 0:01:28]} 33. Rc1 {[%emt 0:03:42]} Nxg5 {[%emt 0:00:29]} 34. Qc5+ {[%emt 0:00:25]} Ke4 {[%emt 0:00:41]} 35. Rc4+ {[%emt 0:03:36]} Qxc4 {[%emt 0:00:04]} 36. Qxc4+ {[%emt 0:00:05]} Kxe5 {[%emt 0:00:03]} 37. f4+ {[%emt 0:00:05]} Kf6 {[%emt 0:00:04]} 38. Qc3+ {[%emt 0:00:04]} Kg6 {[%emt 0:00:52]} 39. Qg3 {[%emt 0:00:09]} Ra6 {[%emt 0:00:36]} 40. Qxg5+ {[%emt 0:00:00]} Kf7 {[%emt 0:00:00]} 41. Qd8 {[%emt 0:00:56]} 1-0

[Event "IV Zagreb Open 2019"]
[Site "Zagreb"]
[Date "2019.12.12"]
[Round "7.2"]
[White "Strikovic, Aleksa"]
[Black "Nikolov, Momchil"]
[Result "1/2-1/2"]
[ECO "D41"]
[WhiteElo "2468"]
[BlackElo "2533"]
[Annotator "ChessBase"]
[PlyCount "96"]
[EventDate "2019.12.07"]
[EventType "swiss"]
[EventCountry "CRO"]
[SourceTitle "playchess.com"]
[Source "ChessBase"]
[SourceQuality "1"]
[TimeControl "40/5400+30:1800+30"]

1. c4 {[%emt 0:01:06]} Nf6 {[%emt 0:00:00]} 2. Nc3 {[%emt 0:00:14]} c5 {[%emt 0:00:26]} 3. Nf3 {[%emt 0:00:09]} d5 {[%emt 0:00:04]} 4. cxd5 {[%emt 0:00:06]} Nxd5 {[%emt 0:00:06]} 5. d4 {[%emt 0:00:05]} e6 {[%emt 0:00:49]} 6. e4 {[%emt 0:00:32]} Nxc3 {[%emt 0:00:14]} 7. bxc3 {[%emt 0:00:05]} cxd4 {[%emt 0:00:06]} 8. cxd4 {[%emt 0:00:05]} Bb4+ {[%emt 0:00:06]} 9. Bd2 {[%emt 0:00:06]} Bxd2+ {[%emt 0:00:07]} 10. Qxd2 {[%emt 0:00:04]} O-O {[%emt 0:00:08]} 11. Bc4 {[%emt 0:00:38]} Nd7 {[%emt 0:00:21]} 12. O-O {[%emt 0:00:43]} b6 {[%emt 0:00:06]} 13. Rfe1 {[%emt 0:07:50]} Bb7 {[%emt 0:00:08]} 14. Qf4 {[%emt 0:05:59]} Rc8 {[%emt 0:01:17]} 15. Bb3 {[%emt 0:03:51]} Qf6 {[%emt 0:07:24]} 16. Qg3 {[%emt 0:17:09]} Rc3 {[%emt 0:04:39]} 17. Rad1 {[%emt 0:01:08]} Rd8 {[%emt 0:08:03]} 18. h4 {[%emt 0:08:19]} h6 {[%emt 0:04:01]} 19. h5 {[%emt 0:02:16]} Nf8 {[%emt 0:07:29]} 20. d5 {[%emt 0:13:53]} exd5 {[%emt 0:01:21]} 21. exd5 {[%emt 0:00:02]} a5 {[%emt 0:07:18]} 22. Qe5 {[%emt 0:07:53]} Nd7 {[%emt 0:00:30]} 23. Qe7 {[%emt 0:00:30]} Nc5 {[%emt 0:00:30]} 24. Qxf6 {[%emt 0:00:30]} gxf6 {[%emt 0:00:30]} 25. Re7 {[%emt 0:00:30]} Bc8 {[%emt 0:00:30]} 26. Nd4 {[%emt 0:00:30]} Nxb3 {[%emt 0:00:30]} 27. Nxb3 {[%emt 0:00:30]} Be6 {[%emt 0:00:30]} 28. d6 {[%emt 0:00:30]} a4 {[%emt 0:00:30]} 29. Nc1 {[%emt 0:00:30]} Rc6 {[%emt 0:00:30]} 30. a3 {[%emt 0:00:30]} Rdxd6 {[%emt 0:00:30]} 31. Rxd6 {[%emt 0:00:30]} Rxd6 {[%emt 0:00:30]} 32. Ne2 {[%emt 0:00:30]} Rd3 {[%emt 0:00:30]} 33. Rb7 {[%emt 0:00:30]} Rxa3 {[%emt 0:00:30]} 34. Rxb6 {[%emt 0:00:30]} Ra1+ {[%emt 0:00:30]} 35. Kh2 {[%emt 0:00:30]} a3 {[%emt 0:00:30]} 36. Ra6 {[%emt 0:00:30]} a2 {[%emt 0:00:30]} 37. Nc3 {[%emt 0:00:30]} Kf8 {[%emt 0:00:30]} 38. Kg3 {[%emt 0:00:30]} Ke7 {[%emt 0:00:30]} 39. f3 {[%emt 0:00:30]} Kd7 {[%emt 0:00:30]} 40. Kf4 {[%emt 0:00:30]} Kc7 {[%emt 0:00:30]} 41. Nxa2 {[%emt 0:30:30]} Rxa2 {[%emt 0:30:30]} 42. Rxa2 {[%emt 0:00:30]} Bxa2 {[%emt 0:00:30]} 43. Kf5 {[%emt 0:00:30]} Kd7 {[%emt 0:00:30]} 44. Kxf6 {[%emt 0:00:30]} Ke8 {[%emt 0:00:30]} 45. Kg7 {[%emt 2:09:13]} Bd5 46. Kxh6 {[%emt 0:00:00]} Kf8 {[%emt 0:42:32]} 47. Kg5 {[%emt 0:00:00]} Kg7 {[%emt 0:00:07]} 48. Kf4 {[%emt 0:00:00]} Kh6 {[%emt 0:02:13]} 1/2-1/2

[Event "IV Zagreb Open 2019"]
[Site "Zagreb"]
[Date "2019.12.12"]
[Round "7.6"]
[White "Nguyen, Piotr"]
[Black "Bertok, Mario Jr."]
[Result "1-0"]
[ECO "A47"]
[WhiteElo "2413"]
[BlackElo "2055"]
[Annotator "ChessBase"]
[PlyCount "103"]
[EventDate "2019.12.07"]
[EventType "swiss"]
[EventCountry "CRO"]
[SourceTitle "playchess.com"]
[Source "ChessBase"]
[SourceQuality "1"]
[TimeControl "40/5400+30:1800+30"]

1. d4 {[%emt 0:00:00]} Nf6 {[%emt 0:00:19]} 2. Nf3 {[%emt 0:00:25]} e6 {[%emt 0:00:39]} 3. Bg5 {[%emt 0:00:42]} c5 {[%emt 0:03:05]} 4. e3 {[%emt 0:00:09]} cxd4 {[%emt 0:01:11]} 5. exd4 {[%emt 0:00:07]} Be7 {[%emt 0:00:49]} 6. c3 {[%emt 0:02:54]} b6 {[%emt 0:01:44]} 7. Nbd2 {[%emt 0:02:32]} Bb7 {[%emt 0:00:55]} 8. Bd3 {[%emt 0:04:18]} a6 {[%emt 0:04:08]} 9. O-O {[%emt 0:01:38]} O-O {[%emt 0:01:27]} 10. Re1 {[%emt 0:00:59]} Nd5 {[%emt 0:03:45]} 11. Bxe7 {[%emt 0:01:27]} Qxe7 {[%emt 0:01:23]} 12. Nf1 {[%emt 0:10:16]} d6 {[%emt 0:07:36]} 13. Ng3 {[%emt 0:04:11]} Nf6 {[%emt 0:04:06]} 14. Bc2 {[%emt 0:04:44]} Qc7 {[%emt 0:01:39]} 15. Qd3 {[%emt 0:02:58]} Nbd7 {[%emt 0:01:46]} 16. Ng5 {[%emt 0:09:27]} h6 {[%emt 0:06:46]} 17. N5e4 {[%emt 0:00:46]} Rfe8 {[%emt 0:03:12]} 18. Qf3 {[%emt 0:09:48]} Nxe4 {[%emt 0:10:45]} 19. Bxe4 {[%emt 0:00:05]} Bxe4 {[%emt 0:00:10]} 20. Rxe4 {[%emt 0:04:57]} Rac8 {[%emt 0:07:33]} 21. Nh5 {[%emt 0:05:52]} Nf8 {[%emt 0:03:04]} 22. Rg4 {[%emt 0:02:47]} Ng6 {[%emt 0:00:36]} 23. h4 {[%emt 0:00:10]} Kh7 {[%emt 0:11:27]} 24. Nxg7 {[%emt 0:01:30]} Kxg7 {[%emt 0:00:02]} 25. h5 {[%emt 0:00:06]} Rg8 {[%emt 0:01:59]} 26. Re1 {[%emt 0:02:47]} Kh7 {[%emt 0:03:05]} 27. hxg6+ {[%emt 0:01:55]} Rxg6 {[%emt 0:00:24]} 28. Rxg6 {[%emt 0:00:08]} Kxg6 {[%emt 0:00:02]} 29. Qd3+ {[%emt 0:06:03]} Kg7 {[%emt 0:01:28]} 30. Qxa6 {[%emt 0:00:04]} Rg8 {[%emt 0:03:09]} 31. Re3 {[%emt 0:02:22]} Kh8 {[%emt 0:00:36]} 32. Qd3 {[%emt 0:04:04]} Rg5 {[%emt 0:00:13]} 33. Rg3 {[%emt 0:02:20]} Kg7 {[%emt 0:02:23]} 34. Qe3 {[%emt 0:02:38]} Kf6 {[%emt 0:03:05]} 35. Qf4+ {[%emt 0:01:30]} Kg6 {[%emt 0:00:16]} 36. Qe4+ {[%emt 0:00:15]} Kg7 {[%emt 0:00:57]} 37. Qh4 {[%emt 0:01:32]} Kg6 {[%emt 0:01:17]} 38. Rh3 {[%emt 0:00:48]} h5 {[%emt 0:00:52]} 39. f4 {[%emt 0:00:37]} Rf5 {[%emt 0:04:54]} 40. g4 {[%emt 0:00:00]} Ra5 {[%emt 0:00:00]} 41. f5+ {[%emt 0:06:10]} exf5 {[%emt 0:06:34]} 42. Qxh5+ {[%emt 0:01:06]} Kf6 {[%emt 0:00:35]} 43. g5+ {[%emt 0:09:16]} Ke6 {[%emt 0:02:44]} 44. Re3+ {[%emt 0:00:12]} Kd5 {[%emt 0:00:38]} 45. Qf3+ {[%emt 0:00:09]} Kc4 {[%emt 0:00:13]} 46. Qf1+ {[%emt 0:01:14]} Kd5 {[%emt 0:00:32]} 47. Qf3+ {[%emt 0:04:42]} Kc4 {[%emt 0:00:14]} 48. Qe2+ {[%emt 0:00:03]} Kd5 {[%emt 0:00:08]} 49. Re7 {[%emt 0:00:20]} Qd8 {[%emt 0:02:27]} 50. Qf3+ {[%emt 0:01:57]} Kc4 {[%emt 0:00:20]} 51. b3+ {[%emt 0:00:14]} Kb5 {[%emt 0:00:25]} 52. a4+ {[%emt 0:00:21]} 1-0

[Event "IV Zagreb Open 2019"]
[Site "Zagreb"]
[Date "2019.12.12"]
[Round "7.9"]
[White "Safar, Sandro"]
[Black "Cvitan, Ognjen"]
[Result "1/2-1/2"]
[ECO "B13"]
[WhiteElo "2210"]
[BlackElo "2488"]
[Annotator "ChessBase"]
[PlyCount "30"]
[EventDate "2019.12.07"]
[EventType "swiss"]
[EventCountry "CRO"]
[SourceTitle "playchess.com"]
[Source "ChessBase"]
[SourceQuality "1"]
[TimeControl "40/5400+30:1800+30"]

1. d4 {[%emt 0:05:38]} Nf6 {[%emt 0:02:06]} 2. Nc3 {[%emt 0:00:21]} d5 {[%emt 0:01:33]} 3. Bf4 {[%emt 0:00:20]} c5 {[%emt 0:01:00]} 4. e3 {[%emt 0:00:24]} cxd4 {[%emt 0:00:20]} 5. exd4 {[%emt 0:00:09]} a6 {[%emt 0:01:41]} 6. Nf3 {[%emt 0:06:05]} Bg4 {[%emt 0:04:35]} 7. h3 {[%emt 0:01:36]} Bxf3 {[%emt 0:01:31]} 8. Qxf3 {[%emt 0:00:10]} Nc6 {[%emt 0:00:10]} 9. O-O-O {[%emt 0:02:29]} e6 {[%emt 0:00:17]} 10. g4 {[%emt 0:01:59]} Bd6 {[%emt 0:03:24]} 11. h4 {[%emt 0:07:01]} Bxf4+ {[%emt 0:13:41]} 12. Qxf4 {[%emt 0:00:08]} O-O {[%emt 0:01:11]} 13. g5 {[%emt 0:12:19]} Ne8 {[%emt 0:03:13]} 14. Bh3 {[%emt 0:04:52]} Qd6 {[%emt 0:14:56]} 15. Ne2 {[%emt 0:15:59]} Qxf4+ {[%emt 0:12:31]} 1/2-1/2

[Event "IV Zagreb Open 2019"]
[Site "Zagreb"]
[Date "2019.12.12"]
[Round "7.11"]
[White "Frouth, Nenad"]
[Black "Smith, Bryan"]
[Result "0-1"]
[ECO "A40"]
[WhiteElo "2195"]
[BlackElo "2428"]
[Annotator "RC"]
[PlyCount "74"]
[EventDate "2019.12.07"]
[EventType "swiss"]
[EventCountry "CRO"]
[SourceTitle "playchess.com"]
[Source "ChessBase"]
[SourceQuality "1"]
[TimeControl "40/5400+30:1800+30"]

1. Nf3 {[%emt 0:01:56]} g6 {[%emt 0:00:00]} 2. c4 {[%emt 0:00:37]} Bg7 {[%emt 0:00:00]} 3. d4 {[%emt 0:00:55]} c5 {[%emt 0:00:00]} 4. d5 {[%emt 0:03:14]} d6 {[%emt 0:00:03]} 5. g3 {[%emt 0:02:16]} e6 {[%emt 0:00:34]} 6. Nc3 {[%emt 0:03:29]} Ne7 {[%emt 0:00:22]} 7. Bg2 {[%emt 0:01:34]} exd5 {[%emt 0:00:20]} 8. cxd5 {[%emt 0:00:40]} O-O {[%emt 0:00:15]} 9. O-O {[%emt 0:00:19]} a6 {[%emt 0:00:25]} 10. a4 {[%emt 0:00:09]} h6 {[%emt 0:01:00]} 11. Nd2 {[%emt 0:13:55]} Nd7 {[%emt 0:01:21]} 12. Nc4 {[%emt 0:05:06]} Nb6 {[%emt 0:00:24]} 13. Na3 {[%emt 0:03:55]} Nf5 {[%emt 0:02:51]} 14. e3 {[%emt 0:01:25]} Bd7 {[%emt 0:03:13]} 15. a5 {[%emt 0:03:52]} Nc8 {[%emt 0:00:28]} 16. e4 {[%emt 0:04:14]} Nd4 {[%emt 0:00:22]} 17. Be3 {[%emt 0:03:50]} Qxa5 {[%emt 0:02:31]} 18. Bxd4 {[%emt 0:05:11]} cxd4 {[%emt 0:00:16]} 19. Ne2 {[%emt 0:00:26]} Na7 {[%emt 0:24:18]} 20. Nxd4 {[%emt 0:01:49]} Qb6 {[%emt 0:01:38]} 21. Ndc2 {[%emt 0:02:22]} Qxb2 {[%emt 0:07:59]} 22. Rb1 {[%emt 0:01:28]} Qc3 {[%emt 0:00:37]} 23. Rxb7 {[%emt 0:01:29]} Ba4 {[%emt 0:01:47]} 24. Qe1 {[%emt 0:03:40]} Rfc8 {[%emt 0:06:13]} 25. Qe3 {[%emt 0:05:24]} Nb5 {[%emt 0:03:07]} 26. Nxb5 {[%emt 0:02:09]} Bxb5 {[%emt 0:00:34]} 27. Qf4 {[%emt 0:08:20]} Qf6 {[%emt 0:00:15]} 28. Nb4 {[%emt 0:00:17]} Bxf1 {[%emt 0:00:56]} 29. Bxf1 {[%emt 0:00:06]} Qxf4 {[%emt 0:01:24]} 30. gxf4 {[%emt 0:00:04]} Rc1 {[%emt 0:00:48]} 31. Nd3 {[%emt 0:03:04]} Rd1 {[%emt 0:01:25]} 32. e5 {[%emt 0:00:24]} dxe5 {[%emt 0:04:28]} 33. fxe5 {[%emt 0:00:25]} a5 {[%emt 0:00:35]} 34. d6 {[%emt 0:00:21]} a4 {[%emt 0:01:15]} 35. d7 {[%emt 0:04:30]} Rd8 {[%emt 0:02:37]} 36. Ra7 {[%emt 0:01:09]} Bf8 {[%emt 0:01:10]} 37. f4 {[%emt 0:01:27]} Rxd3 {[%emt 0:01:03]} 0-1

[Event "IV Zagreb Open 2019"]
[Site "Zagreb"]
[Date "2019.12.13"]
[Round "8.1"]
[White "Enchev, Ivajlo"]
[Black "Kozul, Zdenko"]
[Result "1/2-1/2"]
[ECO "E97"]
[WhiteElo "2482"]
[BlackElo "2590"]
[Annotator "ChessBase"]
[PlyCount "79"]
[EventDate "2019.12.07"]
[EventType "swiss"]
[EventCountry "CRO"]
[SourceTitle "playchess.com"]
[Source "ChessBase"]
[SourceQuality "1"]
[TimeControl "40/5400+30:1800+30"]

1. d4 {[%emt 0:00:07]} Nf6 {[%emt 0:00:00]} 2. c4 {[%emt 0:00:08]} g6 {[%emt 0:00:00]} 3. Nc3 {[%emt 0:00:12]} Bg7 {[%emt 0:00:37]} 4. e4 {[%emt 0:00:15]} d6 {[%emt 0:00:07]} 5. Nf3 {[%emt 0:00:25]} O-O {[%emt 0:00:12]} 6. Be2 {[%emt 0:00:12]} e5 {[%emt 0:02:06]} 7. O-O {[%emt 0:00:14]} Nc6 {[%emt 0:00:47]} 8. dxe5 {[%emt 0:00:41]} dxe5 {[%emt 0:00:34]} 9. Bg5 {[%emt 0:00:14]} Bg4 {[%emt 0:02:29]} 10. Qxd8 {[%emt 0:01:35]} Nxd8 {[%emt 0:00:07]} 11. Bxf6 {[%emt 0:00:57]} Bxf6 {[%emt 0:00:08]} 12. Nd5 {[%emt 0:00:05]} Bxf3 {[%emt 0:00:26]} 13. Bxf3 {[%emt 0:04:44]} Bg5 {[%emt 0:03:58]} 14. Nxc7 {[%emt 0:02:00]} Rc8 {[%emt 0:00:15]} 15. Nb5 {[%emt 0:01:08]} Rxc4 {[%emt 0:07:25]} 16. Nxa7 {[%emt 0:03:20]} Ne6 {[%emt 0:05:04]} 17. Nb5 {[%emt 0:02:06]} Rb4 {[%emt 0:02:34]} 18. Nc3 {[%emt 0:03:26]} Rxb2 {[%emt 0:05:47]} 19. Rab1 {[%emt 0:03:27]} Rxb1 {[%emt 0:03:45]} 20. Rxb1 {[%emt 0:00:24]} Rc8 {[%emt 0:00:07]} 21. Nd5 {[%emt 0:07:07]} Rc2 {[%emt 0:00:35]} 22. a4 {[%emt 0:04:47]} Nc5 {[%emt 0:07:47]} 23. g3 {[%emt 0:09:52]} Kf8 {[%emt 0:11:41]} 24. h4 {[%emt 0:06:51]} Rc1+ {[%emt 0:04:07]} 25. Rxc1 {[%emt 0:00:05]} Bxc1 {[%emt 0:00:05]} 26. Bd1 {[%emt 0:05:26]} Nxe4 {[%emt 0:01:09]} 27. Bc2 {[%emt 0:00:16]} Nc5 {[%emt 0:03:59]} 28. g4 {[%emt 0:04:57]} h6 {[%emt 0:02:40]} 29. Kg2 {[%emt 0:04:40]} Bd2 {[%emt 0:04:43]} 30. Nf6 {[%emt 0:01:50]} Bb4 {[%emt 0:00:48]} 31. h5 {[%emt 0:01:42]} gxh5 {[%emt 0:00:28]} 32. gxh5 {[%emt 0:00:39]} Ne6 {[%emt 0:05:11]} 33. Be4 {[%emt 0:03:44]} Nc5 {[%emt 0:05:18]} 34. Bc2 {[%emt 0:00:15]} Ba5 {[%emt 0:05:16]} 35. Ng4 {[%emt 0:01:56]} Ne6 {[%emt 0:00:34]} 36. Nxe5 {[%emt 0:01:17]} Bc7 {[%emt 0:01:17]} 37. Nd3 {[%emt 0:01:52]} Ke7 {[%emt 0:00:09]} 38. Bd1 {[%emt 0:04:34]} b6 {[%emt 0:00:30]} 39. Kf3 {[%emt 0:02:26]} Bd6 {[%emt 0:04:39]} 40. Ke4 {[%emt 0:00:14]} 1/2-1/2

[Event "IV Zagreb Open 2019"]
[Site "Zagreb"]
[Date "2019.12.13"]
[Round "8.2"]
[White "Nikolov, Momchil"]
[Black "Kovacevic, Blazimir"]
[Result "1/2-1/2"]
[ECO "D35"]
[WhiteElo "2533"]
[BlackElo "2453"]
[Annotator "ChessBase"]
[PlyCount "25"]
[EventDate "2019.12.07"]
[EventType "swiss"]
[EventCountry "CRO"]
[SourceTitle "playchess.com"]
[Source "ChessBase"]
[SourceQuality "1"]
[TimeControl "40/5400+30:1800+30"]

1. d4 {[%emt 0:00:00]} Nf6 {[%emt 0:00:00]} 2. c4 {[%emt 0:00:34]} e6 {[%emt 0:00:00]} 3. Nc3 {[%emt 0:00:08]} d5 {[%emt 0:00:10]} 4. cxd5 {[%emt 0:00:13]} exd5 {[%emt 0:00:05]} 5. Bg5 {[%emt 0:00:06]} c6 {[%emt 0:00:10]} 6. e3 {[%emt 0:00:09]} Bd6 {[%emt 0:00:24]} 7. Bd3 {[%emt 0:00:58]} O-O {[%emt 0:00:19]} 8. Nge2 {[%emt 0:05:14]} Re8 {[%emt 0:01:24]} 9. h3 {[%emt 0:03:01]} Nbd7 {[%emt 0:09:42]} 10. Qc2 {[%emt 0:01:17]} Nf8 {[%emt 0:01:07]} 11. Bf4 {[%emt 0:07:51]} b6 {[%emt 0:09:10]} 12. O-O {[%emt 0:02:25]} Bb7 {[%emt 0:00:33]} 13. Rac1 {[%emt 0:10:49]} 1/2-1/2